bitfinex/quotes_ETHUSD_20250815
["timestamp","ask_amount","ask_price","bid_price","bid_amount"]
[1755280062657,3.855,4450.4,4449.9,0.112]
[1755280062859,2.24703952,4450.3,4449.9,0.112]
[1755280063095,6.10199376,4450.4,4449.9,0.112]
[1755280063304,6.10199376,4450.4,4449.9,0.8512]
[1755280063305,2.24704391,4450.3,4449.9,0.8512]
[1755280063504,3.855,4450.4,4449.9,0.8512]
[1755280064006,0.112,4450.5,4449.9,0.112]
[1755280064207,3.845,4450.5,4450.3,0.112]
[1755280064508,0.002,4450.6,4450.4,0.7392]
[1755280065177,0.002,4450.6,4450.3,0.112]
[1755280067109,0.002,4450.6,4450.4,0.7392]
[1755280067598,0.002,4450.6,4450.3,0.112]
[1755280068235,0.114,4450.6,4450.0,0.112]
[1755280068400,0.002,4450.6,4450.1,0.7392]
[1755280068732,0.002,4450.6,4450.2,1.1798]
[1755280069091,0.002,4450.6,4449.8,0.7392]
[1755280069295,0.002,4450.6,4450.3,0.112]
[1755280069933,0.002,4450.6,4450.3,0.8512]
[1755280070135,0.002,4450.6,4450.3,0.112]
[1755280070634,2.24695525,4450.5,4450.3,0.112]
[1755280070820,0.002,4450.6,4449.8,0.7392]
[1755280071001,2.36093704,4450.6,4450.0,0.112]
[1755280071202,2.36089613,4450.6,4450.0,0.112]
[1755280071529,2.36089613,4450.6,4449.6,2.24737828]
[1755280071530,0.114,4450.6,4449.1,2.9868343]
[1755280071731,0.4513,4450.5,4449.7,0.112]
[1755280071937,0.112,4450.0,4449.3,0.112]
[1755280072097,2.24724151,4449.9,4449.3,0.112]
[1755280072298,2.24739964,4449.6,4449.3,0.112]
[1755280072512,2.24747497,4449.5,4449.3,0.112]
[1755280072733,2.24764559,4449.1,4449.0,0.001]
[1755280073030,2.35964559,4449.1,4449.0,0.001]
[1755280073234,2.81094559,4449.1,4449.0,0.001]
[1755280073442,0.112,4449.1,4449.0,0.001]
[1755280073625,6.06964559,4449.1,4449.0,0.001]
[1755280073942,6.63194559,4449.1,4449.0,0.001]
[1755280074721,8.2066957,4449.1,4449.0,0.001]
[1755280075345,11.2066957,4449.1,4449.0,0.001]
[1755280076349,11.2066957,4449.1,4449.0,1e-08]
[1755280080032,11.7566957,4449.1,4449.0,1e-08]
[1755280080227,11.7396957,4449.1,4449.0,1e-08]
[1755280080939,2.24789821,4448.6,4448.5,1e-08]
[1755280081138,2.24815089,4448.1,4448.0,1e-08]
[1755280081462,9.16095089,4448.1,4448.0,1e-08]
[1755280081665,10.67083645,4448.1,4448.0,1e-08]
[1755280083383,9.98403645,4448.1,4448.0,1e-08]
[1755280083584,6.47136246,4448.1,4448.0,1e-08]
[1755280083791,10.83146246,4448.1,4448.0,1e-08]
[1755280084670,7.03546246,4448.1,4448.0,1e-08]
[1755280084853,10.83146246,4448.1,4448.0,1e-08]
[1755280085897,11.51826246,4448.1,4448.0,1e-08]
[1755280087563,11.51826246,4448.1,4447.1,1e-08]
[1755280087564,2.24860586,4447.2,4447.1,1e-08]
[1755280087766,9.38226645,4447.2,4447.1,1e-08]
[1755280088094,9.81276645,4447.2,4447.1,1e-08]
[1755280088796,9.38226645,4447.2,4447.1,1e-08]
[1755280088995,9.15740586,4447.2,4447.1,0.70350001]
[1755280089201,5.36140586,4447.2,4447.1,0.70350001]
[1755280089586,6.15740586,4447.2,4447.1,0.70350001]
[1755280089970,2.36140586,4447.2,4447.1,0.70350001]
[1755280090173,0.1128,4447.5,4447.1,1.17770001]
[1755280090514,3.796,4447.7,4447.3,0.1128]
[1755280090874,2.24764559,4449.1,4447.4,1.1777]
[1755280091076,0.112,4448.4,4447.6,0.1128]
[1755280091266,3.796,4448.3,4447.7,1.1777]
[1755280091597,0.112,4448.4,4447.8,0.7035]
[1755280091765,3.796,4448.2,4448.0,0.1128]
[1755280091961,0.112,4448.7,4448.1,1.1777]
[1755280092159,3.908,4448.9,4448.2,1.1777]
[1755280092385,0.3908,4448.8,4448.3,0.7035]
[1755280092593,0.112,4448.9,4448.4,0.4742]
[1755280092963,3.796,4449.2,4448.5,1.1777]
[1755280093159,3.908,4449.2,4448.5,1.1777]
[1755280093692,2.24765498,4449.1,4448.5,1.1777]
[1755280093895,0.002,4449.5,4448.6,0.02247898]
[1755280094083,3.91,4449.5,4448.9,0.112]
[1755280094290,3.91,4449.5,4448.5,0.4742]
[1755280094291,0.391,4449.4,4448.5,0.4742]
[1755280094503,0.391,4449.4,4448.5,0.112]
[1755280094504,2.24764559,4449.1,4448.5,0.112]
[1755280094704,2.24789821,4448.6,4448.4,0.7035]
[1755280094927,3.06904454,4449.4,4448.4,0.7035]
[1755280094928,3.796,4448.7,4448.4,0.7035]
[1755280095135,2.24789821,4448.6,4448.4,0.7035]
[1755280095293,3.796,4448.7,4448.4,0.7035]
[1755280095824,3.796,4449.1,4448.5,1.2897]
[1755280096123,0.112,4449.2,4448.5,1.2897]
[1755280096440,3.796,4449.2,4448.6,0.7035]
[1755280096587,3.796,4449.2,4448.8,0.112]
[1755280096793,0.112,4449.4,4448.9,0.7035]
[1755280097093,0.002,4449.5,4449.0,1.1777]
[1755280097291,3.0,4449.3,4447.1,1e-08]
[1755280097541,2.24860586,4447.2,4447.1,1e-08]
[1755280097687,6.05860586,4447.2,4447.1,1e-08]
[1755280097891,2.36140586,4447.2,4447.1,1e-08]
[1755280098211,2.36140586,4447.2,4447.1,0.70350001]
[1755280098626,0.1128,4447.2,4447.1,0.70350001]
[1755280098943,3.806,4447.6,4447.1,0.70350001]
[1755280099106,2.24860586,4447.2,4447.1,0.70350001]
[1755280099302,3.9188,4447.6,4447.1,0.70350001]
[1755280099303,2.24845418,4447.5,4447.1,0.70350001]
[1755280099542,3.806,4447.6,4447.1,1e-08]
[1755280099712,2.24860586,4447.2,4447.1,1e-08]
[1755280099930,3.814,4447.4,4447.1,0.70350001]
[1755280100131,2.2485553,4447.3,4447.2,0.7035]
[1755280100532,2.24860586,4447.2,4447.1,1e-08]
[1755280101246,2.2481245,4448.2,4447.1,1e-08]
[1755280101247,0.32284103,4448.5,4447.1,0.70350001]
[1755280101447,2.24860586,4447.2,4447.1,0.70350001]
[1755280104023,2.24850474,4447.4,4447.3,0.7035]
[1755280104208,2.24830253,4447.8,4447.3,0.7035]
[1755280104409,2.24840018,4447.7,4447.3,0.7035]
[1755280104966,0.17258063,4448.8,4447.4,0.7035]
[1755280105114,0.17258063,4448.8,4447.5,0.4742]
[1755280105449,2.4204092,4448.8,4447.6,0.82127]
[1755280105659,0.17258063,4448.8,4448.1,2.2481471]
[1755280105866,0.17258063,4448.8,4448.2,0.022481]
[1755280106067,3.808,4449.1,4448.2,3.42577586]
[1755280106224,3.808,4449.1,4448.3,0.7035]
[1755280106626,4.1888,4449.1,4447.8,0.7035]
[1755280106839,0.4305,4449.0,4447.1,1e-08]
[1755280107139,2.24801675,4448.4,4447.5,2.24840942]
[1755280107444,2.24799575,4448.5,4447.6,0.7035]
[1755280107665,2.24812378,4448.2,4447.6,0.7035]
[1755280107975,2.24812378,4448.2,4447.1,1e-08]
[1755280107976,4.2355,4448.6,4447.1,1e-08]
[1755280108271,3.805,4448.6,4447.1,0.70350001]
[1755280108481,2.2486057,4447.3,4447.1,1e-08]
[1755280108995,3.803,4447.6,4447.1,1e-08]
[1755280108996,2.24850474,4447.4,4447.1,1e-08]
[1755280109293,0.4305,4447.3,4447.1,1e-08]
[1755280109581,2.24860586,4447.2,4447.1,1e-08]
[1755280111103,2.67910586,4447.2,4447.1,1e-08]
[1755280111254,3.56324719,4447.2,4447.1,1e-08]
[1755280111588,4.24554719,4447.2,4447.1,1e-08]
[1755280111790,6.58790586,4447.2,4447.1,1e-08]
[1755280112297,10.70740586,4447.2,4447.1,1e-08]
[1755280112470,11.40072405,4447.2,4447.1,1e-08]
[1755280113188,11.19088131,4447.2,4447.1,1e-08]
[1755280113397,11.40071415,4447.2,4447.1,1e-08]
[1755280113566,12.82606985,4447.2,4447.1,1e-08]
[1755280114089,12.82906985,4447.2,4447.1,1e-08]
[1755280115073,12.82870614,4447.2,4447.1,1e-08]
[1755280115505,3.05130764,4447.7,4447.1,1e-08]
[1755280115506,2.24843736,4447.6,4447.1,1e-08]
[1755280115672,3.809,4447.5,4447.1,1e-08]
[1755280115871,2.24860586,4447.2,4447.1,1e-08]
[1755280116700,2.71440586,4447.2,4447.1,1e-08]
[1755280116898,3.36674645,4447.2,4447.1,1e-08]
[1755280117390,7.84604645,4447.2,4447.1,1e-08]
[1755280118084,10.84604645,4447.2,4447.1,1e-08]
[1755280118298,11.32894962,4447.2,4447.1,1e-08]
[1755280118603,11.87894962,4447.2,4447.1,1e-08]
[1755280118899,5.79906101,4446.3,4446.2,1e-08]
[1755280119104,2.79921277,4446.0,4445.9,1e-08]
[1755280119307,9.60221277,4446.0,4445.9,1e-08]
[1755280119510,10.74331277,4446.0,4445.9,1e-08]
[1755280119668,11.22604682,4446.0,4445.9,1e-08]
[1755280120004,6.5967314,4446.0,4445.9,1e-08]
[1755280120298,10.8635314,4446.0,4445.9,1e-08]
[1755280120710,7.0625314,4446.0,4445.9,1e-08]
[1755280120891,6.5967314,4446.0,4445.9,1e-08]
[1755280121399,9.51601277,4446.0,4445.9,1e-08]
[1755280121574,9.05021277,4446.0,4445.9,1e-08]
[1755280122175,5.24921277,4446.0,4445.9,1e-08]
[1755280122376,9.05221277,4446.0,4445.9,1e-08]
[1755280122580,9.63081277,4446.0,4445.9,1e-08]
[1755280122804,6.55000797,4446.0,4445.9,1e-08]
[1755280123004,10.35300797,4446.0,4445.9,1e-08]
[1755280123207,10.35100797,4446.0,4445.9,1e-08]
[1755280123410,1.3007952,4446.0,4445.9,1e-08]
[1755280123571,3.9138,4446.0,4445.9,0.71120001]
[1755280123904,6.16301277,4446.0,4445.9,0.71120001]
[1755280124205,6.16301277,4446.0,4445.9,1e-08]
[1755280124405,2.36201277,4446.0,4445.9,1e-08]
[1755280124620,0.1128,4446.0,4445.9,1.18010001]
[1755280124785,3.9108,4446.0,4445.9,1.18010001]
[1755280125104,3.798,4446.0,4445.9,0.71120001]
[1755280126180,0.1128,4446.3,4445.9,1.18010001]
[1755280126384,3.798,4446.2,4446.0,0.4689]
[1755280126692,3.798,4446.2,4446.1,1.2929]
[1755280126892,3.798,4446.2,4446.1,0.824]
[1755280127288,3.798,4446.2,4446.1,1.2929]
[1755280127685,5.401,4447.0,4446.1,1.2929]
[1755280127885,3.798,4446.9,4446.2,1.1801]
[1755280128285,3.798,4446.9,4446.2,0.7112]
[1755280128502,6.04676867,4446.9,4446.2,0.7112]
[1755280128686,2.24880813,4446.8,4446.2,0.7112]
[1755280129028,3.9108,4446.9,4446.2,0.1128]
[1755280129186,0.93118,4446.8,4446.2,0.1128]
[1755280129391,2.24893541,4446.6,4446.2,0.1128]
[1755280129589,3.798,4446.5,4446.2,0.1128]
[1755280130026,2.24901043,4446.4,4446.2,0.1128]
[1755280130229,6.04700122,4446.5,4446.2,0.1128]
[1755280130927,3.798,4446.4,4446.3,1.1801]
[1755280131133,3.798,4446.4,4446.3,0.7112]
[1755280132235,3.798,4446.4,4446.2,0.1128]
[1755280132407,3.798,4446.4,4445.9,1e-08]
[1755280132731,3.798,4446.4,4446.0,0.1128]
[1755280132919,3.798,4446.4,4445.9,1e-08]
[1755280133098,2.24911771,4446.2,4445.9,1e-08]
[1755280133431,6.04616932,4446.1,4445.9,1e-08]
[1755280133632,3.797,4446.0,4445.9,1e-08]
[1755280133998,3.797,4446.0,4445.9,0.71120001]
[1755280134197,0.1128,4446.4,4445.9,1.18010001]
[1755280134525,3.797,4446.1,4446.0,1.1801]
[1755280135032,3.797,4446.1,4446.0,0.824]
[1755280135426,7.11656627,4446.1,4446.0,0.1128]
[1755280135636,2.24921277,4446.0,4445.9,1e-08]
[1755280135938,6.15901277,4446.0,4445.9,1e-08]
[1755280136098,0.1128,4446.0,4445.9,0.71120001]
[1755280136299,3.797,4446.3,4445.9,0.71120001]
[1755280136499,3.797,4446.5,4445.9,1.29290001]
[1755280136724,2.24921277,4446.0,4445.9,0.95339001]
[1755280136907,2.24916429,4446.1,4445.9,0.95339001]
[1755280137143,3.797,4446.5,4445.9,0.24219001]
[1755280137306,2.24921277,4446.0,4445.9,1e-08]
[1755280137504,3.797,4446.1,4445.9,1e-08]
[1755280137818,2.24921277,4446.0,4445.9,1e-08]
[1755280138757,2.71501277,4446.0,4445.9,1e-08]
[1755280138915,2.24921277,4446.0,4445.9,1e-08]
[1755280139315,2.71501277,4446.0,4445.9,1e-08]
[1755280139551,7.26642821,4446.0,4445.9,1e-08]
[1755280139941,7.75064999,4446.0,4445.9,1e-08]
[1755280140519,7.26642821,4446.0,4445.9,1e-08]
[1755280140714,7.75076246,4446.0,4445.9,1e-08]
[1755280141126,7.38812821,4446.0,4445.9,1e-08]
[1755280141328,3.12532821,4446.0,4445.9,1e-08]
[1755280141546,6.04621277,4446.0,4445.9,1e-08]
[1755280142059,6.51201277,4446.0,4445.9,1e-08]
[1755280142362,6.04621277,4446.0,4445.9,1e-08]
[1755280142533,2.24926336,4445.9,4445.8,1e-08]
[1755280142719,7.85893514,4445.9,4445.8,1e-08]
[1755280143319,2.24966817,4445.1,4443.4,1.1801]
[1755280143528,6.04666817,4445.1,4443.4,1.1801]
[1755280143756,7.18776817,4445.1,4443.4,1.1801]
[1755280143978,10.18776817,4445.1,4443.4,1.1801]
[1755280144276,10.18776817,4445.1,4443.4,0.7112]
[1755280144277,11.43150472,4445.1,4443.4,0.7112]
[1755280144435,2.25039324,4443.7,4443.4,0.7112]
[1755280144634,3.797,4443.6,4442.5,0.7112]
[1755280144939,2.25087616,4442.8,4442.5,0.7112]
[1755280145140,2.25089469,4442.7,4442.5,0.7112]
[1755280145344,3.797,4443.1,4442.6,0.7112]
[1755280145543,2.25073148,4443.0,4442.7,0.7112]
[1755280145750,3.797,4443.1,4442.8,0.7112]
[1755280146369,3.797,4443.1,4442.2,2.25113682]
[1755280146544,3.797,4443.0,4442.9,0.6942]
[1755280146870,3.797,4443.2,4442.9,0.6942]
[1755280147167,2.25068469,4443.1,4442.9,0.6942]
[1755280147365,3.0,4443.9,4441.4,20.83480254]
[1755280147366,0.1128,4443.3,4442.7,0.1128]
[1755280147568,3.797,4443.3,4443.1,0.1128]
[1755280147769,3.797,4443.5,4443.1,0.1128]
[1755280147970,3.797,4443.5,4443.2,0.6942]
[1755280148171,3.797,4443.6,4443.3,0.6942]
[1755280148464,0.1128,4443.8,4443.4,0.6942]
[1755280148670,0.1128,4443.8,4443.3,0.4344]
[1755280148865,0.1128,4443.8,4443.4,0.6942]
[1755280149555,3.797,4444.2,4443.5,1.1286]
[1755280149865,3.9098,4444.2,4443.6,0.1128]
[1755280150068,3.797,4444.3,4443.8,0.1128]
[1755280150272,2.25014058,4444.2,4443.8,0.1128]
[1755280150472,2.25026611,4444.0,4443.0,2.94488178]
[1755280150633,0.1128,4444.0,4443.4,0.1128]
[1755280150968,3.797,4444.1,4443.7,0.1128]
[1755280151169,2.25021916,4444.1,4443.7,0.1128]
[1755280151371,0.1128,4444.3,4443.8,1.1286]
[1755280151582,0.1128,4445.5,4444.2,0.1128]
[1755280151954,0.1128,4445.5,4444.3,1.1286]
[1755280152177,0.1128,4445.5,4444.4,1.1286]
[1755280152384,3.797,4446.0,4445.2,0.1128]
[1755280152565,0.1128,4445.6,4445.0,0.1128]
[1755280152986,0.4494,4446.0,4445.0,0.807]
[1755280153281,0.1128,4445.8,4445.0,0.807]
[1755280153871,2.3621285,4445.8,4445.0,0.807]
[1755280154071,0.1128,4445.8,4445.0,0.807]
[1755280154285,2.24945422,4445.6,4445.0,0.807]
[1755280154482,3.0,4445.5,4444.1,0.001]
[1755280154694,2.25003786,4444.4,4444.1,0.001]
[1755280154905,3.797,4444.7,4444.1,0.001]
[1755280155218,2.25008968,4444.3,4444.1,0.001]
[1755280155422,3.797,4444.7,4444.1,0.001]
[1755280155576,2.25012375,4444.2,4444.1,0.001]
[1755280156413,0.4494,4445.2,4444.1,0.001]
[1755280156627,2.24993084,4444.6,4444.1,0.6952]
[1755280156836,2.24998353,4444.5,4444.1,0.6952]
[1755280157124,2.24983631,4444.8,4444.1,0.001]
[1755280157334,3.797,4445.1,4444.2,0.6942]
[1755280157618,2.24991547,4444.7,4444.2,0.6942]
[1755280157784,2.24971878,4445.0,4444.2,0.6942]
[1755280157990,3.797,4445.2,4444.3,0.29453699]
[1755280158305,2.24947485,4445.5,4444.5,2.24995737]
[1755280158510,0.4494,4446.1,4444.9,2.24976402]
[1755280158712,0.4494,4446.1,4444.6,1.1286]
[1755280158880,0.87404,4446.1,4444.7,0.1353587]
[1755280159085,2.24927304,4445.9,4444.7,2.38521238]
[1755280159302,2.24927304,4445.9,4444.7,2.36271368]
[1755280159535,0.4494,4446.1,4444.7,2.36272567]
[1755280159739,2.24952502,4445.4,4444.7,0.11286]
[1755280159920,2.2493222,4445.8,4444.9,2.24976539]
[1755280160088,3.796,4446.3,4444.9,2.94395105]
[1755280160287,0.42454,4446.2,4444.9,2.94395105]
[1755280160522,2.24925388,4446.0,4445.0,2.24970857]
[1755280160721,2.24928576,4445.9,4445.0,2.24970857]
[1755280161443,6.0451001,4446.3,4445.3,2.24953353]
[1755280161591,6.0451001,4446.3,4445.4,0.6942]
[1755280161592,3.796,4446.3,4445.4,0.6942]
[1755280161931,0.4494,4446.4,4444.8,0.4344]
[1755280162223,2.24932425,4445.8,4444.8,2.94397814]
[1755280162448,0.4494,4446.0,4444.8,0.6942]
[1755280162850,0.4494,4446.0,4444.3,0.84453699]
[1755280162851,3.6922,4445.9,4444.1,0.6952]
[1755280163033,2.24987227,4444.7,4444.1,0.001]
[1755280163201,0.4494,4445.8,4444.1,0.001]
[1755280163202,2.24981448,4444.9,4444.1,0.001]
[1755280163401,2.24982563,4444.8,4444.1,0.001]
[1755280163799,2.24976916,4445.0,4444.1,0.001]
[1755280164032,2.24978241,4444.9,4444.1,0.001]
[1755280164333,3.796,4445.1,4444.1,0.001]
[1755280164639,0.1128,4445.0,4444.4,0.1128]
[1755280164856,2.24952526,4445.4,4444.5,0.02249971]
[1755280165058,0.1128,4445.6,4444.9,0.1128]
[1755280165233,3.795,4445.8,4445.2,0.1128]
[1755280165428,0.1128,4445.9,4445.2,0.1128]
[1755280166173,0.1128,4446.1,4445.0,0.6942]
[1755280166467,2.24934522,4445.8,4445.5,0.1128]
[1755280166769,2.24938014,4445.7,4445.5,0.1128]
[1755280166924,0.4494,4445.7,4445.5,0.1128]
[1755280167426,0.1128,4446.1,4445.5,0.1128]
[1755280167636,2.24960381,4445.3,4444.8,0.1128]
[1755280167837,0.4494,4445.2,4444.8,0.1128]
[1755280168156,2.69908296,4445.1,4444.8,0.1128]
[1755280168655,2.24981227,4444.9,4444.1,0.001]
[1755280168856,2.24981227,4444.9,4444.4,0.1128]
[1755280169225,0.4494,4444.8,4444.4,0.1128]
[1755280170760,2.69922756,4444.8,4444.4,0.1128]
[1755280170953,0.4494,4444.7,4444.4,0.1128]
[1755280172458,2.24978216,4444.9,4444.4,0.1128]
[1755280172758,0.4494,4444.7,4444.4,0.1128]
[1755280173261,0.4494,4444.6,4444.1,0.001]
[1755280173422,0.1128,4444.5,4444.1,0.001]
[1755280173866,2.64398516,4444.5,4444.1,0.001]
[1755280174039,2.25007312,4444.3,4444.1,0.001]
[1755280174428,2.69947312,4444.3,4444.1,0.001]
[1755280174618,2.25012375,4444.2,4444.1,0.001]
[1755280174842,2.69952375,4444.2,4444.1,0.001]
[1755280175175,2.81232375,4444.2,4444.1,0.001]
[1755280175983,0.1128,4444.2,4444.1,0.001]
[1755280176179,0.4494,4445.4,4444.1,0.6952]
[1755280176384,2.24932136,4445.8,4444.8,2.24980534]
[1755280176679,0.1128,4445.7,4445.1,0.1128]
[1755280176878,0.1148,4445.9,4445.1,0.1128]
[1755280177376,2.36407683,4445.9,4445.1,0.1128]
[1755280177943,2.68581395,4445.8,4445.1,0.1128]
[1755280178178,2.24945746,4445.6,4445.1,0.1128]
[1755280178385,2.36225746,4445.6,4445.1,0.1128]
[1755280178590,2.68596624,4445.5,4445.1,0.1128]
[1755280178965,2.36222072,4445.6,4445.1,0.1128]
[1755280179282,0.4365,4445.4,4445.1,0.1128]
[1755280179777,0.1128,4445.2,4444.6,0.1128]
[1755280181282,0.1128,4445.6,4445.0,2.36247968]
[1755280181485,0.1128,4445.6,4445.1,2.27215603]
[1755280181761,0.1128,4445.6,4445.1,3.0]
[1755280181961,0.1128,4445.6,4445.2,2.24961756]
[1755280182152,0.002,4445.9,4445.2,2.92101756]
[1755280182358,0.1148,4445.9,4445.3,0.1128]
[1755280182676,0.1148,4445.9,4445.3,2.36236395]
[1755280182854,0.002,4445.9,4445.3,3.24351034]
[1755280183059,0.002,4445.9,4445.3,0.99398393]
[1755280183499,0.002,4445.9,4445.3,0.1128]
[1755280183693,0.002,4445.9,4445.4,2.92086812]
[1755280183990,0.002,4445.9,4445.7,0.1128]
[1755280184192,0.002,4445.9,4445.8,0.1128]
[1755280184399,0.002,4445.9,4445.6,3.0]
[1755280184578,0.002,4445.9,4445.7,3.22050684]
[1755280184783,0.002,4445.9,4445.8,2.24931395]
[1755280184986,0.002,4445.9,4445.8,2.92071395]
[1755280185298,0.002,4445.9,4445.8,3.36441395]
[1755280186505,0.002,4445.9,4445.8,6.71171395]
[1755280186862,0.002,4445.9,4445.8,8.44864348]
[1755280187496,0.002,4445.9,4445.8,2.92071395]
[1755280189008,0.002,4445.9,4445.8,0.6714]
[1755280189176,0.002,4445.9,4445.8,4.4614]
[1755280189378,0.002,4445.9,4445.8,6.71071395]
[1755280189993,0.002,4445.9,4445.8,7.15441395]
[1755280190600,0.002,4445.9,4445.7,3.789]
[1755280191116,0.4385,4445.9,4445.3,3.789]
[1755280191414,0.002,4445.9,4445.7,2.24936022]
[1755280191588,0.002,4445.9,4445.8,6.70971395]
[1755280191793,0.002,4445.9,4445.8,7.15341395]
[1755280192413,0.002,4445.9,4445.8,6.70971395]
[1755280192789,0.002,4445.9,4445.8,3.36441395]
[1755280192990,0.002,4445.9,4445.8,7.27109379]
[1755280193294,0.002,4445.9,4445.8,7.71479379]
[1755280193477,0.002,4445.9,4445.8,11.26479379]
[1755280194106,0.002,4445.9,4445.8,7.47579379]
[1755280194318,0.002,4445.9,4445.8,10.93289379]
[1755280194615,0.002,4445.9,4445.8,10.37151395]
[1755280194818,0.002,4445.9,4445.8,10.81521395]
[1755280195029,0.002,4446.4,4446.3,2.24906101]
[1755280195323,0.002,4446.4,4446.3,29.61536682]
[1755280195491,0.002,4446.9,4446.7,2.2488587]
[1755280195821,0.002,4446.9,4446.7,2.83392609]
[1755280195985,0.002,4446.9,4446.7,6.54843751]
[1755280196189,0.002,4446.9,4446.7,0.1128]
[1755280196587,0.002,4446.9,4446.7,3.8998]
[1755280196814,0.4385,4446.8,4446.7,3.8998]
[1755280197025,0.002,4446.8,4446.7,3.8998]
[1755280197823,0.002,4446.8,4446.7,6.1486587]
[1755280198026,0.002,4446.8,4446.7,6.98842034]
[1755280198243,0.002,4446.8,4446.7,7.65982034]
[1755280198390,0.002,4446.8,4446.7,8.10352034]
[1755280198828,0.002,4446.8,4446.7,3.20142034]
[1755280198995,0.002,4446.8,4446.7,6.98742034]
[1755280199325,0.002,4446.8,4446.7,4.73856164]
[1755280199532,0.4385,4446.8,4446.7,0.1128]
[1755280200596,0.4385,4446.8,4446.5,0.1128]
[1755280200799,0.4365,4446.7,4446.5,0.1128]
[1755280201405,1.0972,4446.6,4445.9,3.785]
[1755280201622,1.0972,4446.6,4446.1,0.1128]
[1755280201821,0.34628744,4446.6,4446.1,0.1128]
[1755280202088,2.24904667,4446.4,4446.1,0.1128]
[1755280202291,0.4365,4446.3,4446.1,0.1128]
[1755280202727,2.90974667,4446.4,4446.1,0.1128]
[1755280202897,0.4365,4446.2,4446.1,0.1128]
[1755280203429,0.4365,4446.2,4444.6,2.69358345]
[1755280203430,2.24916218,4446.1,4445.7,0.1128]
[1755280203729,0.5493,4446.4,4445.7,0.1128]
[1755280203891,0.4365,4446.4,4446.0,0.1128]
[1755280204096,0.1128,4446.6,4446.0,0.1128]
[1755280204418,0.1128,4446.6,4445.7,3.784]
[1755280204419,0.4385,4446.8,4446.3,0.1128]
[1755280204618,0.4365,4446.7,4446.3,0.1128]
[1755280205018,0.6607,4446.6,4446.3,0.1128]
[1755280205195,2.24896348,4446.5,4446.3,0.1128]
[1755280205532,2.24896348,4446.5,4445.6,3.784]
[1755280205533,1.0972,4446.5,4445.1,3.0]
[1755280205718,0.4365,4446.4,4445.5,2.24942359]
[1755280206028,2.68551726,4446.4,4446.1,0.1128]
[1755280206195,2.36181726,4446.4,4445.8,0.1128]
[1755280206398,0.4607,4446.4,4445.6,3.784]
[1755280206633,0.002,4446.8,4445.7,0.682]
[1755280206818,2.25085168,4446.8,4446.3,0.1128]
[1755280207130,0.4607,4446.7,4446.3,0.1128]
[1755280207531,0.002,4446.8,4446.3,0.1128]
[1755280207734,0.4607,4446.6,4446.3,0.1128]
[1755280208030,0.002,4446.8,4446.3,0.1128]
[1755280208431,0.4607,4446.7,4446.3,0.1128]
[1755280208618,2.24895985,4446.5,4445.8,3.783]
[1755280208821,2.7097157,4446.4,4446.1,0.1128]
[1755280209022,2.70972499,4446.4,4445.6,3.783]
[1755280209209,0.4607,4446.3,4444.9,0.682]
[1755280209407,2.2493011,4445.9,4445.6,0.1128]
[1755280209612,0.4607,4445.8,4445.6,0.1128]
[1755280210040,0.4607,4446.3,4445.6,0.1128]
[1755280210333,2.24914714,4446.2,4445.6,0.1128]
[1755280210724,0.1128,4446.4,4445.6,3.782]
[1755280211034,0.4607,4446.7,4446.0,0.1128]
[1755280211601,0.002,4446.8,4446.0,0.1128]
[1755280211806,0.002,4446.8,4446.1,3.782]
[1755280212332,0.002,4446.8,4446.4,0.1128]
[1755280212736,2.24891607,4446.6,4446.4,0.1128]
[1755280212937,0.73186161,4446.5,4446.1,3.782]
[1755280213235,0.4607,4446.4,4446.1,3.8948]
[1755280213676,0.4607,4446.3,4446.1,3.8948]
[1755280213846,2.24904626,4446.4,4446.1,0.1128]
[1755280214052,0.4607,4446.2,4445.6,3.781]
[1755280214212,0.1128,4446.4,4445.8,0.1128]
[1755280214904,0.002,4446.8,4446.3,0.1128]
[1755280215103,0.002,4446.8,4446.7,0.1128]
[1755280215907,0.4627,4446.8,4446.7,0.1128]
[1755280216428,2.71150813,4446.8,4446.7,0.1128]
[1755280216745,0.73425081,4446.8,4446.2,0.1128]
[1755280216909,2.71151821,4446.8,4446.2,0.1128]
[1755280217106,0.002,4446.8,4446.2,0.1128]
[1755280217520,0.002,4446.8,4446.2,6.14190338]
[1755280217854,0.002,4446.8,4446.2,0.1128]
[1755280218023,0.002,4446.8,4446.7,2.2488587]
[1755280218223,0.002,4446.8,4446.7,0.33768587]
[1755280218424,0.002,4446.8,4446.7,3.29103315]
[1755280219038,0.002,4446.8,4446.7,3.70524457]
[1755280219956,0.002,4446.8,4446.7,3.26854457]
[1755280220156,0.002,4446.8,4446.7,7.50673315]
[1755280220361,0.002,4446.8,4446.7,8.03424457]
[1755280220524,0.002,4446.8,4446.7,11.03424457]
[1755280223147,0.002,4446.8,4446.7,9.36354457]
[1755280223347,0.002,4446.8,4446.7,10.04554457]
[1755280223745,0.002,4447.3,4447.2,2.79860586]
[1755280223947,0.002,4447.3,4447.2,29.79345831]
[1755280224136,0.002,4447.4,4447.3,5.7985553]
[1755280224338,0.002,4447.4,4447.3,6.9172553]
[1755280225079,0.002,4448.1,4447.5,0.55]
[1755280225323,0.002,4448.1,4448.0,2.24820143]
[1755280225474,0.002,4448.1,4447.6,6.776]
[1755280225667,0.002,4448.1,4447.7,0.55]
[1755280225873,0.002,4448.1,4448.0,2.24820143]
[1755280226070,0.002,4448.1,4447.6,6.776]
[1755280226071,0.4607,4448.0,4447.6,2.24839917]
[1755280226302,0.4607,4448.0,4447.7,6.02434115]